[Event "*** Titled Tuesday Blitz"]
[Site "Chess.com"]
[Date "2018.01.02"]
[Round "6"]
[White "juniortay"]
[Black "jposthuma"]
[Result "1-0"]
[WhiteElo "2298"]
[BlackElo "2321"]
[TimeControl "180+2"]
[EndTime "14:20:23 PST"]
[Termination "juniortay won by resignation"]

1. e4 {[%clk 0:03:01.9]} 1... c6 {[%clk 0:03:00.7]} 2. Nf3 {[%clk 0:03:02.6]}
2... d5 {[%clk 0:03:02.6]} 3. exd5 {[%clk 0:03:04.3]} 3... cxd5 {[%clk
0:03:03.3]} 4. Ne5 {[%clk 0:03:05.9]} 4... Nc6 {[%clk 0:03:03.4]} 5. d4 {[%clk
0:03:07.4]} 5... Nf6 {[%clk 0:03:03.7]} 6. Bb5 {[%clk 0:03:07.2]} 6... Bd7
{[%clk 0:03:02.9]} 7. Nxd7 {[%clk 0:03:08.2]} 7... Qxd7 {[%clk 0:03:04.8]} 8. c3
{[%clk 0:03:09.9]} 8... e6 {[%clk 0:03:01.7]} 9. O-O {[%clk 0:03:11.1]} 9... a6
{[%clk 0:03:01.4]} 10. Bd3 {[%clk 0:03:11.2]} 10... Bd6 {[%clk 0:02:59]} 11. Nd2
{[%clk 0:03:11.8]} 11... O-O {[%clk 0:02:57.9]} 12. Qe2 {[%clk 0:03:11]} 12...
b5 {[%clk 0:02:57.7]} 13. a3 {[%clk 0:03:11.4]} 13... Na5 {[%clk 0:02:52.6]} 14.
f4 {[%clk 0:03:10.7]} 14... Nc4 {[%clk 0:02:46.7]} 15. Nf3 {[%clk 0:03:10.2]}
15... Rfc8 {[%clk 0:02:35.2]} 16. Ne5 {[%clk 0:03:10.7]} 16... Qa7 {[%clk
0:02:22.6]} 17. Kh1 {[%clk 0:03:09.7]} 17... a5 {[%clk 0:02:13.6]} 18. Rf3
{[%clk 0:03:07.6]} 18... Qb7 {[%clk 0:01:47.1]} 19. f5 {[%clk 0:02:27.2]} 19...
exf5 {[%clk 0:01:48]} 20. Rxf5 {[%clk 0:02:20.9]} 20... Re8 {[%clk 0:01:35.7]}
21. Bg5 {[%clk 0:02:20.4]} 21... Bxe5 {[%clk 0:00:52.2]} 22. dxe5 {[%clk
0:02:19.5]} 22... Nd7 {[%clk 0:00:52.6]} 23. Rxf7 {[%clk 0:01:32.5]} 23... Kxf7
{[%clk 0:00:30]} 24. Qh5+ {[%clk 0:01:25.8]} 24... Ke6 {[%clk 0:00:30.1]} 25.
Qg4+ {[%clk 0:01:03.8]} 25... Kf7 {[%clk 0:00:17.3]} 26. Qh5+ {[%clk 0:00:55.5]}
26... Ke6 {[%clk 0:00:17.5]} 27. Qg4+ {[%clk 0:00:28.7]} 27... Kf7 {[%clk
0:00:18.1]} 28. Qf5+ {[%clk 0:00:28.5]} 28... Nf6 {[%clk 0:00:15.2]} 29. Bxf6
{[%clk 0:00:27.2]} 29... g6 {[%clk 0:00:13.2]} 30. Qh3 {[%clk 0:00:28.2]} 30...
Nxe5 {[%clk 0:00:11.5]} 31. Qxh7+ {[%clk 0:00:26.5]} 31... Kxf6 {[%clk
0:00:11.2]} 32. Qxb7 {[%clk 0:00:28.4]} 32... Nxd3 {[%clk 0:00:12]} 33. Qxd5
{[%clk 0:00:29.2]} 33... Nxb2 {[%clk 0:00:08.4]} 34. Rf1+ {[%clk 0:00:28.9]}
34... Kg7 {[%clk 0:00:09.3]} 35. Qd7+ {[%clk 0:00:29.6]} 35... Kh6 {[%clk
0:00:09.9]} 36. Qd2+ {[%clk 0:00:29.6]} 36... Kg7 {[%clk 0:00:09.8]} 37. Qxb2
{[%clk 0:00:30.5]} 37... Rac8 {[%clk 0:00:10.1]} 38. c4+ {[%clk 0:00:31.1]}
38... Kh6 {[%clk 0:00:09.4]} 39. cxb5 {[%clk 0:00:32.1]} 1-0

[Event "*** Titled Tuesday Blitz"]
[Site "Chess.com"]
[Date "2018.01.02"]
[Round "6"]
[White "pandamaster3000"]
[Black "ckgchess"]
[Result "1/2-1/2"]
[WhiteElo "2282"]
[BlackElo "2470"]
[TimeControl "180+2"]
[EndTime "14:20:25 PST"]
[Termination "Game drawn by repetition"]

1. e4 {[%clk 0:03:01.9]} 1... c5 {[%clk 0:02:58.2]} 2. Nf3 {[%clk 0:03:01.8]}
2... d6 {[%clk 0:02:47]} 3. Bb5+ {[%clk 0:03:02.8]} 3... Nd7 {[%clk 0:02:47.8]}
4. d4 {[%clk 0:03:03.1]} 4... cxd4 {[%clk 0:02:48.2]} 5. Qxd4 {[%clk 0:03:05]}
5... a6 {[%clk 0:02:49.4]} 6. Bxd7+ {[%clk 0:03:06.3]} 6... Bxd7 {[%clk
0:02:51.3]} 7. c4 {[%clk 0:03:07.6]} 7... e5 {[%clk 0:02:52.4]} 8. Qd3 {[%clk
0:03:08.3]} 8... b5 {[%clk 0:02:53.1]} 9. Na3 {[%clk 0:03:07.7]} 9... Qb8 {[%clk
0:02:52]} 10. O-O {[%clk 0:03:03.7]} 10... h6 {[%clk 0:02:49.2]} 11. Rd1 {[%clk
0:03:00.7]} 11... Nf6 {[%clk 0:02:47.6]} 12. h3 {[%clk 0:02:53.5]} 12... Be7
{[%clk 0:02:48.4]} 13. b3 {[%clk 0:02:53.5]} 13... O-O {[%clk 0:02:41.2]} 14.
Bb2 {[%clk 0:02:53.7]} 14... Qb7 {[%clk 0:02:38.5]} 15. Rac1 {[%clk 0:02:53.8]}
15... Bc6 {[%clk 0:02:25.5]} 16. Nd2 {[%clk 0:02:22.9]} 16... Bxe4 {[%clk
0:02:10.4]} 17. Nxe4 {[%clk 0:02:00]} 17... Nxe4 {[%clk 0:02:12.3]} 18. cxb5
{[%clk 0:02:00.9]} 18... axb5 {[%clk 0:02:13.1]} 19. Nxb5 {[%clk 0:01:58]} 19...
Nc5 {[%clk 0:02:11]} 20. Qc4 {[%clk 0:01:26.9]} 20... Rxa2 {[%clk 0:02:01]} 21.
Nxd6 {[%clk 0:01:27.4]} 21... Bxd6 {[%clk 0:02:02.4]} 22. Rxd6 {[%clk
0:01:28.9]} 22... Ne4 {[%clk 0:01:27.2]} 23. Rd5 {[%clk 0:00:55.8]} 23... Rxb2
{[%clk 0:01:24.3]} 24. Qxe4 {[%clk 0:00:55.8]} 24... Rd2 {[%clk 0:00:23.8]} 25.
Rxe5 {[%clk 0:00:27.9]} 25... Qxb3 {[%clk 0:00:24.5]} 26. Re8 {[%clk 0:00:19.9]}
26... Rd8 {[%clk 0:00:17.7]} 27. Rxf8+ {[%clk 0:00:20]} 27... Kxf8 {[%clk
0:00:18.7]} 28. Re1 {[%clk 0:00:21.3]} 28... Qa3 {[%clk 0:00:17.6]} 29. Qe3
{[%clk 0:00:21.6]} 29... Qd6 {[%clk 0:00:18.6]} 30. Qe5 {[%clk 0:00:20.6]} 30...
Qb4 {[%clk 0:00:15.2]} 31. Qe3 {[%clk 0:00:19.4]} 31... Kg8 {[%clk 0:00:13.6]}
32. Qe4 {[%clk 0:00:20.1]} 32... Qd6 {[%clk 0:00:14.3]} 33. Qe5 {[%clk
0:00:20.6]} 33... Qb4 {[%clk 0:00:15]} 34. Qe4 {[%clk 0:00:21.8]} 34... Qd2
{[%clk 0:00:14.3]} 35. Qe2 {[%clk 0:00:22.8]} 35... Qd6 {[%clk 0:00:14.1]} 36.
Qe5 {[%clk 0:00:23.7]} 36... Qg6 {[%clk 0:00:14.8]} 37. Qe4 {[%clk 0:00:24.6]}
37... Qg5 {[%clk 0:00:14.5]} 38. Qe5 {[%clk 0:00:25.4]} 38... Qd2 {[%clk
0:00:15]} 39. Qe2 {[%clk 0:00:24.4]} 39... Qa5 {[%clk 0:00:14.9]} 40. Qe5 {[%clk
0:00:25]} 40... Qb6 {[%clk 0:00:14.7]} 41. Qe3 {[%clk 0:00:25.8]} 41... Qd6
{[%clk 0:00:13.9]} 42. Qe5 {[%clk 0:00:24.5]} 1/2-1/2

[Event "*** Titled Tuesday Blitz"]
[Site "Chess.com"]
[Date "2018.01.02"]
[Round "6"]
[White "VeraNebolsina"]
[Black "capatl"]
[Result "1-0"]
[WhiteElo "2323"]
[BlackElo "2389"]
[TimeControl "180+2"]
[EndTime "14:20:26 PST"]
[Termination "VeraNebolsina won by resignation"]

1. e4 {[%clk 0:03:01.3]} 1... c5 {[%clk 0:03:00.6]} 2. Nf3 {[%clk 0:03:00.3]}
2... e6 {[%clk 0:03:01.4]} 3. c3 {[%clk 0:03:00.2]} 3... Nf6 {[%clk 0:03:01.8]}
4. e5 {[%clk 0:02:56.7]} 4... Nd5 {[%clk 0:03:02.9]} 5. d4 {[%clk 0:02:57.6]}
5... cxd4 {[%clk 0:03:03.4]} 6. Qxd4 {[%clk 0:02:57.7]} 6... Be7 {[%clk
0:02:46.8]} 7. Bd3 {[%clk 0:02:51.9]} 7... d6 {[%clk 0:02:38.8]} 8. Qg4 {[%clk
0:02:40]} 8... g6 {[%clk 0:02:25.6]} 9. Bh6 {[%clk 0:02:29.1]} 9... Nc6 {[%clk
0:02:05.6]} 10. Bb5 {[%clk 0:01:47.1]} 10... Qb6 {[%clk 0:01:55.1]} 11. Na3
{[%clk 0:01:34.6]} 11... Bd7 {[%clk 0:01:40.6]} 12. exd6 {[%clk 0:01:29.2]}
12... Bxd6 {[%clk 0:01:36.1]} 13. Nc4 {[%clk 0:01:29.5]} 13... Qc7 {[%clk
0:01:30.8]} 14. Nxd6+ {[%clk 0:01:29.9]} 14... Qxd6 {[%clk 0:01:30]} 15. Bxc6
{[%clk 0:01:06.3]} 15... Bxc6 {[%clk 0:01:24.1]} 16. Bg7 {[%clk 0:01:05.5]}
16... Rg8 {[%clk 0:01:20.2]} 17. Be5 {[%clk 0:01:06.3]} 17... Qc5 {[%clk
0:01:02.1]} 18. Bd4 {[%clk 0:01:03.1]} 18... Qb5 {[%clk 0:01:00.5]} 19. Ne5
{[%clk 0:00:56.2]} 19... Ne7 {[%clk 0:00:35.2]} 20. O-O-O {[%clk 0:00:39.1]}
20... Nf5 {[%clk 0:00:33.3]} 21. Nxc6 {[%clk 0:00:28.3]} 21... Qxc6 {[%clk
0:00:32.1]} 22. Bf6 {[%clk 0:00:28.5]} 22... Ne7 {[%clk 0:00:23.1]} 23. Rhe1
{[%clk 0:00:25.9]} 23... Nd5 {[%clk 0:00:22.9]} 24. Qh4 {[%clk 0:00:20.5]} 24...
h6 {[%clk 0:00:17.9]} 25. Bd4 {[%clk 0:00:19.2]} 25... h5 {[%clk 0:00:16.1]} 26.
Qg5 {[%clk 0:00:17.7]} 26... Rd8 {[%clk 0:00:16.2]} 27. Kb1 {[%clk 0:00:18.4]}
27... a6 {[%clk 0:00:16.9]} 28. Ka1 {[%clk 0:00:19.4]} 28... Rd7 {[%clk
0:00:18.2]} 29. Be5 {[%clk 0:00:19]} 29... Ne7 {[%clk 0:00:18.5]} 30. Bf6 {[%clk
0:00:16.8]} 30... Nf5 {[%clk 0:00:16.5]} 31. f3 {[%clk 0:00:17]} 31... Qa4
{[%clk 0:00:16]} 32. Rxd7 {[%clk 0:00:15.7]} 32... Kxd7 {[%clk 0:00:17.9]} 33.
Qd2+ {[%clk 0:00:15.7]} 33... Kc8 {[%clk 0:00:18.7]} 34. g4 {[%clk 0:00:15.7]}
34... Ng7 {[%clk 0:00:17.9]} 35. Rd1 {[%clk 0:00:15.4]} 35... Kb8 {[%clk
0:00:18]} 36. Qd6+ {[%clk 0:00:14.6]} 36... Ka8 {[%clk 0:00:18.4]} 37. b3 {[%clk
0:00:14.4]} 37... Ne8 {[%clk 0:00:19.2]} 38. Qd8+ {[%clk 0:00:14.5]} 38... Ka7
{[%clk 0:00:20.6]} 39. bxa4 {[%clk 0:00:15.9]} 1-0

[Event "*** Titled Tuesday Blitz"]
[Site "Chess.com"]
[Date "2018.01.02"]
[Round "6"]
[White "comedy_of_errors"]
[Black "jcibarra"]
[Result "1-0"]
[WhiteElo "2604"]
[BlackElo "2712"]
[TimeControl "180+2"]
[EndTime "14:20:45 PST"]
[Termination "comedy_of_errors won by resignation"]

1. Nf3 {[%clk 0:03:01.9]} 1... Nf6 {[%clk 0:03:00.6]} 2. g3 {[%clk 0:03:02.9]}
2... g6 {[%clk 0:03:01.6]} 3. Bg2 {[%clk 0:03:04]} 3... Bg7 {[%clk 0:03:03.2]}
4. b3 {[%clk 0:03:04.1]} 4... Ne4 {[%clk 0:03:01.4]} 5. d4 {[%clk 0:03:04.2]}
5... c5 {[%clk 0:03:02.5]} 6. O-O {[%clk 0:02:43.9]} 6... cxd4 {[%clk 0:03:01]}
7. Nxd4 {[%clk 0:02:42.6]} 7... d5 {[%clk 0:02:56.3]} 8. Bb2 {[%clk 0:02:42.3]}
8... O-O {[%clk 0:02:56.4]} 9. Nd2 {[%clk 0:02:40.5]} 9... Qb6 {[%clk
0:02:40.7]} 10. Nxe4 {[%clk 0:02:14.4]} 10... dxe4 {[%clk 0:02:41.6]} 11. e3
{[%clk 0:02:15.5]} 11... Rd8 {[%clk 0:02:36.2]} 12. Qc1 {[%clk 0:02:10.3]} 12...
e5 {[%clk 0:02:28.2]} 13. Ne2 {[%clk 0:02:08]} 13... Bg4 {[%clk 0:02:29.8]} 14.
Nc3 {[%clk 0:02:06.2]} 14... f5 {[%clk 0:02:22.6]} 15. h3 {[%clk 0:01:58.3]}
15... Bf3 {[%clk 0:02:23]} 16. Na4 {[%clk 0:01:54.9]} 16... Qc7 {[%clk
0:02:13.9]} 17. Ba3 {[%clk 0:01:29.1]} 17... Nd7 {[%clk 0:01:51.5]} 18. Nb2
{[%clk 0:01:19.1]} 18... Nf6 {[%clk 0:01:40.7]} 19. Nc4 {[%clk 0:01:18.8]} 19...
b5 {[%clk 0:01:37.2]} 20. Nd2 {[%clk 0:01:18.3]} 20... Bxg2 {[%clk 0:01:37.3]}
21. Kxg2 {[%clk 0:01:20.2]} 21... Qc3 {[%clk 0:01:35.6]} 22. Rd1 {[%clk
0:01:13.4]} 22... Rac8 {[%clk 0:01:35.3]} 23. Be7 {[%clk 0:00:55.6]} 23... Re8
{[%clk 0:01:35.1]} 24. Bxf6 {[%clk 0:00:55.7]} 24... Bxf6 {[%clk 0:01:37]} 25.
Qa3 {[%clk 0:00:53.7]} 25... Qc6 {[%clk 0:01:27.4]} 26. c4 {[%clk 0:00:51.5]}
26... a6 {[%clk 0:01:20.1]} 27. Rac1 {[%clk 0:00:50.8]} 27... Qb7 {[%clk
0:01:11.3]} 28. c5 {[%clk 0:00:44.4]} 28... f4 {[%clk 0:01:05.4]} 29. b4 {[%clk
0:00:45.5]} 29... Red8 {[%clk 0:00:49.1]} 30. Qb3+ {[%clk 0:00:46]} 30... Kg7
{[%clk 0:00:49]} 31. Qc2 {[%clk 0:00:39.2]} 31... fxe3 {[%clk 0:00:33.8]} 32.
fxe3 {[%clk 0:00:41.1]} 32... Rd3 {[%clk 0:00:26.8]} 33. c6 {[%clk 0:00:42.2]}
33... Qb6 {[%clk 0:00:24]} 34. Nxe4 {[%clk 0:00:43.4]} 34... Rxd1 {[%clk
0:00:19.3]} 35. Qxd1 {[%clk 0:00:42.1]} 35... Rd8 {[%clk 0:00:12.8]} 36. Qe2
{[%clk 0:00:42.3]} 36... Be7 {[%clk 0:00:12.6]} 37. c7 {[%clk 0:00:41.6]} 37...
Rc8 {[%clk 0:00:14.1]} 38. Qc2 {[%clk 0:00:42.2]} 38... Qxe3 {[%clk 0:00:11.3]}
39. Rd1 {[%clk 0:00:43.4]} 39... Kf8 {[%clk 0:00:07.5]} 40. Rd7 {[%clk
0:00:39.2]} 40... Ke8 {[%clk 0:00:08]} 41. Qc6 {[%clk 0:00:39.6]} 41... Qe2+
{[%clk 0:00:06.5]} 42. Nf2 {[%clk 0:00:40.7]} 42... Kf8 {[%clk 0:00:07.8]} 43.
Qb7 {[%clk 0:00:38.4]} 43... Re8 {[%clk 0:00:05.4]} 44. c8=Q {[%clk 0:00:38.8]}
44... Rxc8 {[%clk 0:00:04.4]} 45. Qxc8+ {[%clk 0:00:40.2]} 45... Kf7 {[%clk
0:00:06.3]} 46. Qb7 {[%clk 0:00:39.2]} 46... Qe4+ {[%clk 0:00:06.9]} 47. Nxe4
{[%clk 0:00:39.2]} 1-0

[Event "*** Titled Tuesday Blitz"]
[Site "Chess.com"]
[Date "2018.01.02"]
[Round "6"]
[White "timator"]
[Black "Slmctk"]
[Result "1/2-1/2"]
[WhiteElo "2317"]
[BlackElo "2318"]
[TimeControl "180+2"]
[EndTime "14:20:47 PST"]
[Termination "Game drawn by repetition"]

1. Nf3 {[%clk 0:03:01.9]} 1... Nf6 {[%clk 0:03:00.1]} 2. g3 {[%clk 0:03:01.2]}
2... b6 {[%clk 0:03:00.8]} 3. Bg2 {[%clk 0:03:02.6]} 3... Bb7 {[%clk 0:03:02.2]}
4. O-O {[%clk 0:03:04.5]} 4... e6 {[%clk 0:03:03.6]} 5. b3 {[%clk 0:03:06]} 5...
Be7 {[%clk 0:03:04.5]} 6. Bb2 {[%clk 0:03:07.6]} 6... O-O {[%clk 0:03:05.7]} 7.
d3 {[%clk 0:03:09.1]} 7... c5 {[%clk 0:03:06.8]} 8. Nbd2 {[%clk 0:03:10.6]} 8...
d6 {[%clk 0:03:07.1]} 9. e4 {[%clk 0:03:11.4]} 9... Qc7 {[%clk 0:03:06]} 10. Qe2
{[%clk 0:03:12.7]} 10... Nbd7 {[%clk 0:03:05.8]} 11. Rae1 {[%clk 0:03:12.5]}
11... Rfe8 {[%clk 0:03:07.1]} 12. Nh4 {[%clk 0:03:11.8]} 12... Bf8 {[%clk
0:03:07.5]} 13. f4 {[%clk 0:03:12.6]} 13... b5 {[%clk 0:03:06.8]} 14. Nhf3
{[%clk 0:03:12.7]} 14... a5 {[%clk 0:03:07.2]} 15. e5 {[%clk 0:03:11.6]} 15...
Nd5 {[%clk 0:03:02.1]} 16. exd6 {[%clk 0:03:11.7]} 16... Bxd6 {[%clk 0:03:04]}
17. Ne4 {[%clk 0:03:09.2]} 17... Bf8 {[%clk 0:03:02]} 18. Ne5 {[%clk 0:03:06.9]}
18... a4 {[%clk 0:02:57.9]} 19. Qh5 {[%clk 0:02:33]} 19... N7f6 {[%clk 0:02:08]}
20. Qh3 {[%clk 0:02:27.1]} 20... axb3 {[%clk 0:01:59.3]} 21. axb3 {[%clk
0:02:27.8]} 21... Ra2 {[%clk 0:01:58]} 22. Rb1 {[%clk 0:02:27.6]} 22... Nxe4
{[%clk 0:01:40.8]} 23. Bxe4 {[%clk 0:02:25.5]} 23... Nf6 {[%clk 0:01:40.3]} 24.
Bxb7 {[%clk 0:01:36.2]} 24... Qxb7 {[%clk 0:01:39.6]} 25. Ng4 {[%clk 0:01:37.7]}
25... Nxg4 {[%clk 0:01:36.4]} 26. Qxg4 {[%clk 0:01:39.6]} 26... c4 {[%clk
0:01:32.9]} 27. bxc4 {[%clk 0:01:11.9]} 27... Qa7+ {[%clk 0:01:31.1]} 28. Kh1
{[%clk 0:01:03.6]} 28... bxc4 {[%clk 0:01:27.7]} 29. dxc4 {[%clk 0:01:04.4]}
29... Qb7+ {[%clk 0:01:20.8]} 30. Qf3 {[%clk 0:01:02.9]} 30... Qa6 {[%clk
0:00:55.6]} 31. c5 {[%clk 0:00:46.9]} 31... Rc8 {[%clk 0:00:31]} 32. f5 {[%clk
0:00:45.5]} 32... exf5 {[%clk 0:00:21.1]} 33. Qxf5 {[%clk 0:00:29]} 33... Qb7+
{[%clk 0:00:22]} 34. Qf3 {[%clk 0:00:29.9]} 34... Qxf3+ {[%clk 0:00:21.8]} 35.
Rxf3 {[%clk 0:00:31.8]} 35... Rxc5 {[%clk 0:00:22.7]} 36. Bd4 {[%clk 0:00:26.9]}
36... Rcxc2 {[%clk 0:00:21.5]} 37. Bg1 {[%clk 0:00:27.9]} 37... Rcb2 {[%clk
0:00:21.1]} 38. Rc1 {[%clk 0:00:26.1]} 38... Rc2 {[%clk 0:00:21.9]} 39. Rd1
{[%clk 0:00:27.1]} 39... Rd2 {[%clk 0:00:18.2]} 40. Rb1 {[%clk 0:00:23.3]} 40...
Rdb2 {[%clk 0:00:19.1]} 41. Re1 {[%clk 0:00:20.6]} 41... Re2 {[%clk 0:00:20.1]}
42. Rd1 {[%clk 0:00:21.9]} 42... Red2 {[%clk 0:00:21.4]} 43. Rc1 {[%clk
0:00:22]} 43... Rdc2 {[%clk 0:00:22.7]} 44. Re1 {[%clk 0:00:23.2]} 44... Re2
{[%clk 0:00:22.1]} 45. Rb1 {[%clk 0:00:24.3]} 45... Reb2 {[%clk 0:00:23]} 46.
Rc1 {[%clk 0:00:17.1]} 46... Rc2 {[%clk 0:00:23.7]} 47. Rd1 {[%clk 0:00:18.5]}
47... Rd2 {[%clk 0:00:24.7]} 1/2-1/2

[Event "*** Titled Tuesday Blitz"]
[Site "Chess.com"]
[Date "2018.01.02"]
[Round "6"]
[White "Al_Shima"]
[Black "CookiesAndIceCream"]
[Result "0-1"]
[WhiteElo "2201"]
[BlackElo "2097"]
[TimeControl "180+2"]
[EndTime "14:20:54 PST"]
[Termination "CookiesAndIceCream won by checkmate"]

1. b3 {[%clk 0:03:01.9]} 1... e5 {[%clk 0:03:00.7]} 2. Bb2 {[%clk 0:03:03.2]}
2... Nc6 {[%clk 0:03:02.2]} 3. e3 {[%clk 0:03:04.5]} 3... d5 {[%clk 0:03:03.4]}
4. Bb5 {[%clk 0:03:06]} 4... Bd6 {[%clk 0:03:04.8]} 5. f4 {[%clk 0:03:07.5]}
5... f6 {[%clk 0:03:05.9]} 6. fxe5 {[%clk 0:03:07.5]} 6... fxe5 {[%clk
0:03:06.6]} 7. Nf3 {[%clk 0:03:04.7]} 7... Nh6 {[%clk 0:03:07.5]} 8. Nxe5 {[%clk
0:02:59.5]} 8... Qh4+ {[%clk 0:03:01.6]} 9. g3 {[%clk 0:03:00.1]} 9... Qe4
{[%clk 0:03:02.4]} 10. Qf3 {[%clk 0:02:47.7]} 10... Qxc2 {[%clk 0:02:21.6]} 11.
Bc3 {[%clk 0:02:18.2]} 11... Bxe5 {[%clk 0:01:50.5]} 12. Na3 {[%clk 0:01:33.3]}
12... Qxc3 {[%clk 0:01:12]} 13. dxc3 {[%clk 0:01:30.1]} 13... Bxc3+ {[%clk
0:01:13]} 14. Kf2 {[%clk 0:00:46.1]} 14... Rf8 {[%clk 0:01:12.7]} 15. Qxf8+
{[%clk 0:00:45.6]} 15... Kxf8 {[%clk 0:01:13.5]} 16. Rad1 {[%clk 0:00:36.4]}
16... Be6 {[%clk 0:01:04.2]} 17. Nc2 {[%clk 0:00:27.8]} 17... Ke7 {[%clk
0:01:01.1]} 18. h3 {[%clk 0:00:27.9]} 18... Ne5 {[%clk 0:00:47.1]} 19. Nd4
{[%clk 0:00:25.8]} 19... c6 {[%clk 0:00:45.2]} 20. Be2 {[%clk 0:00:26.3]} 20...
Bb4 {[%clk 0:00:35.7]} 21. Kg2 {[%clk 0:00:26.8]} 21... Rf8 {[%clk 0:00:34.8]}
22. Rhf1 {[%clk 0:00:27.1]} 22... Rxf1 {[%clk 0:00:34.9]} 23. Rxf1 {[%clk
0:00:27]} 23... Bc5 {[%clk 0:00:34.8]} 24. g4 {[%clk 0:00:27.1]} 24... Bd7
{[%clk 0:00:35.1]} 25. a4 {[%clk 0:00:21.6]} 25... g6 {[%clk 0:00:35.6]} 26. Kg3
{[%clk 0:00:21.2]} 26... Nhf7 {[%clk 0:00:36.9]} 27. h4 {[%clk 0:00:22]} 27...
Nd6 {[%clk 0:00:37]} 28. Kg2 {[%clk 0:00:21.2]} 28... Ne4 {[%clk 0:00:37.9]} 29.
g5 {[%clk 0:00:22.1]} 29... Bb4 {[%clk 0:00:34.1]} 30. Rc1 {[%clk 0:00:21.5]}
30... Bd2 {[%clk 0:00:34.1]} 31. Rd1 {[%clk 0:00:21.7]} 31... Bxe3 {[%clk
0:00:35]} 32. Nf3 {[%clk 0:00:22]} 32... Bf4 {[%clk 0:00:34.2]} 33. Nd4 {[%clk
0:00:22.4]} 33... Be3 {[%clk 0:00:29.7]} 34. Nf3 {[%clk 0:00:22.5]} 34... Nxf3
{[%clk 0:00:30.3]} 35. Bxf3 {[%clk 0:00:23.5]} 35... Bf5 {[%clk 0:00:29.8]} 36.
Re1 {[%clk 0:00:23.5]} 36... Bc5 {[%clk 0:00:30.2]} 37. Re2 {[%clk 0:00:24.5]}
37... Kd6 {[%clk 0:00:31.5]} 38. Re1 {[%clk 0:00:25.4]} 38... Bd4 {[%clk
0:00:33]} 39. Bd1 {[%clk 0:00:26.3]} 39... Be5 {[%clk 0:00:31.5]} 40. Be2 {[%clk
0:00:27]} 40... Bg3 {[%clk 0:00:32.3]} 41. Rd1 {[%clk 0:00:27.8]} 41... Bxh4
{[%clk 0:00:32.8]} 42. Rh1 {[%clk 0:00:28.7]} 42... Bxg5 {[%clk 0:00:31]} 43.
Rxh7 {[%clk 0:00:29.7]} 43... Nc3 {[%clk 0:00:26.7]} 44. Bf3 {[%clk 0:00:28.6]}
44... d4 {[%clk 0:00:26.7]} 45. Rxb7 {[%clk 0:00:28.9]} 45... d3 {[%clk
0:00:27.6]} 46. Rxa7 {[%clk 0:00:29.4]} 46... d2 {[%clk 0:00:28.5]} 47. a5
{[%clk 0:00:24.4]} 47... Be4 {[%clk 0:00:28.7]} 48. Bxe4 {[%clk 0:00:21.9]}
48... Nxe4 {[%clk 0:00:28.3]} 49. Kf3 {[%clk 0:00:20.5]} 49... d1=Q+ {[%clk
0:00:29.4]} 50. Kxe4 {[%clk 0:00:21.7]} 50... Qd5# {[%clk 0:00:30.1]} 0-1

[Event "*** Titled Tuesday Blitz"]
[Site "Chess.com"]
[Date "2018.01.02"]
[Round "6"]
[White "geeeeri"]
[Black "Incognito_Knight"]
[Result "0-1"]
[WhiteElo "2406"]
[BlackElo "2538"]
[TimeControl "180+2"]
[EndTime "14:21:03 PST"]
[Termination "Incognito_Knight won by checkmate"]

1. e4 {[%clk 0:03:01.9]} 1... c5 {[%clk 0:02:56.4]} 2. Nf3 {[%clk 0:03:02.9]}
2... e6 {[%clk 0:02:56.4]} 3. d3 {[%clk 0:03:03.8]} 3... Nc6 {[%clk 0:02:55]} 4.
Nbd2 {[%clk 0:03:05.7]} 4... g6 {[%clk 0:02:54.6]} 5. g3 {[%clk 0:03:07.6]} 5...
Bg7 {[%clk 0:02:55.3]} 6. Bg2 {[%clk 0:03:09.5]} 6... Nge7 {[%clk 0:02:57]} 7.
O-O {[%clk 0:03:10.8]} 7... O-O {[%clk 0:02:58.1]} 8. Re1 {[%clk 0:03:12]} 8...
d6 {[%clk 0:02:57.6]} 9. Nf1 {[%clk 0:03:12.7]} 9... b5 {[%clk 0:02:58.1]} 10.
h4 {[%clk 0:03:14.2]} 10... a5 {[%clk 0:02:47.9]} 11. N1h2 {[%clk 0:03:16.1]}
11... a4 {[%clk 0:02:44.2]} 12. h5 {[%clk 0:03:17.3]} 12... a3 {[%clk
0:02:40.8]} 13. c3 {[%clk 0:03:16.7]} 13... axb2 {[%clk 0:02:40.2]} 14. Bxb2
{[%clk 0:03:16.8]} 14... b4 {[%clk 0:02:41.2]} 15. d4 {[%clk 0:03:13.8]} 15...
Qb6 {[%clk 0:02:31.9]} 16. e5 {[%clk 0:02:58.2]} 16... bxc3 {[%clk 0:02:26.9]}
17. Bxc3 {[%clk 0:02:58.6]} 17... Nd5 {[%clk 0:02:28.4]} 18. dxc5 {[%clk
0:01:47.9]} 18... Qxc5 {[%clk 0:02:22.4]} 19. Bd2 {[%clk 0:01:48.3]} 19... dxe5
{[%clk 0:01:59.2]} 20. h6 {[%clk 0:01:47.7]} 20... Bh8 {[%clk 0:01:57.3]} 21.
Ng4 {[%clk 0:01:30.7]} 21... e4 {[%clk 0:01:58.3]} 22. Rc1 {[%clk 0:01:22.1]}
22... Qb5 {[%clk 0:01:24.2]} 23. Bf1 {[%clk 0:01:11]} 23... Qb6 {[%clk
0:01:06.2]} 24. Rxe4 {[%clk 0:00:54.8]} 24... f5 {[%clk 0:01:07.1]} 25. Rec4
{[%clk 0:00:55.5]} 25... fxg4 {[%clk 0:01:08.3]} 26. Rxc6 {[%clk 0:00:53.2]}
26... Qa7 {[%clk 0:01:08.8]} 27. Bg2 {[%clk 0:00:20.4]} 27... gxf3 {[%clk
0:01:04.6]} 28. Bxf3 {[%clk 0:00:22.3]} 28... Qf7 {[%clk 0:00:48.2]} 29. Bf4
{[%clk 0:00:08.3]} 29... Nxf4 {[%clk 0:00:42.5]} 30. Rc7 {[%clk 0:00:09.6]}
30... Nh3+ {[%clk 0:00:40]} 31. Kg2 {[%clk 0:00:11]} 31... Qxf3+ {[%clk
0:00:15.1]} 32. Qxf3 {[%clk 0:00:12.9]} 32... Rxf3 {[%clk 0:00:15.5]} 33. Kxf3
{[%clk 0:00:14.8]} 33... Ba6 {[%clk 0:00:10.4]} 34. Re7 {[%clk 0:00:14.7]} 34...
Ng5+ {[%clk 0:00:10.4]} 35. Kg4 {[%clk 0:00:16]} 35... Nf7 {[%clk 0:00:10.6]}
36. Rcc7 {[%clk 0:00:17.9]} 36... Nxh6+ {[%clk 0:00:10.4]} 37. Kg5 {[%clk
0:00:18.3]} 37... Nf5 {[%clk 0:00:09.1]} 38. Rxh7 {[%clk 0:00:19.5]} 38... Rf8
{[%clk 0:00:07.3]} 39. g4 {[%clk 0:00:19.3]} 39... Ng7 {[%clk 0:00:04.1]} 40.
Kxg6 {[%clk 0:00:18.8]} 40... Bd3+ {[%clk 0:00:05.4]} 41. Kg5 {[%clk 0:00:19.8]}
41... Bxh7 {[%clk 0:00:07]} 42. f4 {[%clk 0:00:21.3]} 42... Ne8 {[%clk
0:00:08.3]} 43. Re7 {[%clk 0:00:21.5]} 43... Bf6+ {[%clk 0:00:09.6]} 44. Kh6
{[%clk 0:00:22.4]} 44... Bxe7 {[%clk 0:00:11.5]} 45. g5 {[%clk 0:00:24.3]} 45...
Rxf4 {[%clk 0:00:12.3]} 46. Kh5 {[%clk 0:00:23.1]} 46... Ng7+ {[%clk 0:00:12.6]}
47. Kh6 {[%clk 0:00:23]} 47... Rh4# {[%clk 0:00:13.9]} 0-1